fUST/lending_fUST_20250702
["ID","MTS","AMOUNT","RATE_DAILY","PERIOD"]
[368953753,1751409043109,-460.0,0.00018079,2]
[368953755,1751409043118,-460.0,0.00018079,2]
[368953757,1751409043128,-460.0,0.00018079,2]
[368953759,1751409043137,-460.0,0.00018079,2]
[368953762,1751409043147,-460.0,0.00018079,2]
[368953763,1751409043156,-510.45,0.00018079,2]
[368953765,1751409043166,-460.0,0.00018079,2]
[368953767,1751409043175,-460.0,0.00018079,2]
[368953769,1751409043184,-460.0,0.00018079,2]
[368953771,1751409043194,-460.0,0.0001808,2]
[368953773,1751409043203,-460.0,0.0001808,2]
[368953775,1751409043213,-488.28,0.00018081,2]
[368953777,1751409043223,-460.0,0.00018081,2]
[368953779,1751409043233,-460.0,0.00018081,2]
[368953781,1751409043242,-460.0,0.00018081,2]
[368953783,1751409043252,-460.0,0.00018081,2]
[368953786,1751409043262,-460.0,0.00018081,2]
[368953787,1751409043271,-460.0,0.00018081,2]
[368953790,1751409043280,-460.0,0.00018081,2]
[368953792,1751409043292,-460.0,0.00018081,2]
[368953794,1751409043303,-460.0,0.00018081,2]
[368953796,1751409043312,-468.4,0.00018081,2]
[368953798,1751409043321,-480.74,0.00018081,2]
[368953800,1751409043331,-460.0,0.00018081,2]
[368953802,1751409043340,-460.0,0.00018081,2]
[368953803,1751409043349,-460.0,0.00018081,2]
[368953806,1751409043359,-460.0,0.00018081,2]
[368953807,1751409043368,-460.0,0.00018081,2]
[368953809,1751409043377,-460.0,0.00018081,2]
[368953811,1751409043387,-460.0,0.00018081,2]
[368953813,1751409043397,-460.0,0.00018081,2]
[368953816,1751409043407,-460.0,0.00018081,2]
[368953818,1751409043416,-460.0,0.00018082,2]
[368953820,1751409043426,-460.0,0.00018082,2]
[368953822,1751409043435,-460.0,0.00018082,2]
[368953824,1751409043445,-460.0,0.00018082,2]
[368953826,1751409043454,-460.0,0.00018082,2]
[368953828,1751409043463,-460.0,0.00018082,2]
[368953830,1751409043472,-460.0,0.00018082,2]
[368953832,1751409043481,-460.0,0.00018082,2]
[368953834,1751409043490,-460.0,0.00018083,2]
[368953836,1751409043499,-236.71259655,0.00018287,2]
[368953838,1751409043508,-460.0,0.00018353,2]
[368953840,1751409043518,-460.0,0.00018353,2]
[368953842,1751409043527,-460.0,0.00018353,2]
[368953844,1751409043537,-460.0,0.00018353,2]
[368953846,1751409043546,-460.0,0.00018353,2]
[368953848,1751409043555,-510.45,0.00018353,2]
[368953850,1751409043565,-460.0,0.00018353,2]
[368953852,1751409043574,-460.0,0.00018353,2]
[368953854,1751409043584,-460.0,0.00018353,2]
[368953856,1751409043593,-460.0,0.00018354,2]
[368953858,1751409043602,-463.8,0.00018354,2]
[368953860,1751409043612,-158.5,0.00018355,2]
[368953862,1751409043621,-460.0,0.00018355,2]
[368953864,1751409043630,-460.0,0.00018355,2]
[368953866,1751409043640,-460.0,0.00018355,2]
[368953868,1751409043649,-480.74,0.00018355,2]
[368953870,1751409043659,-601.96,0.00018355,2]
[368953872,1751409043668,-609.96,0.00018355,2]
[368953874,1751409043677,-460.0,0.00018355,2]
[368953876,1751409043687,-460.0,0.00018355,2]
[368953877,1751409043696,-460.0,0.00018355,2]
[368953880,1751409043706,-460.0,0.00018355,2]
[368953882,1751409043715,-460.0,0.00018355,2]
[368953883,1751409043724,-173.2,0.00018356,2]
[368953885,1751409043735,-460.0,0.00018356,2]
[368953887,1751409043744,-460.0,0.00018356,2]
[368953889,1751409043753,-460.0,0.00018356,2]
[368953891,1751409043763,-599.8,0.00018356,2]
[368953894,1751409043772,-460.0,0.00018356,2]
[368953896,1751409043782,-460.0,0.00018356,2]
[368953898,1751409043792,-460.0,0.00018356,2]
[368953900,1751409043801,-1000.0,0.00018398,2]
[368953902,1751409043810,-500.0,0.00018473,2]
[368953904,1751409043819,-33163.0534037,0.00018473,2]
[368953906,1751409043829,-160.0,0.00018531,2]
[368953908,1751409043838,-215.01728679,0.00018531,2]
[368953910,1751409043847,-230.32585361,0.00018531,2]
[368953912,1751409043856,-837.20943635,0.00018531,2]
[368953914,1751409043866,-460.0,0.00018627,2]
[368953916,1751409043875,-460.0,0.00018627,2]
[368953918,1751409043884,-460.0,0.00018627,2]
[368953920,1751409043894,-460.0,0.00018627,2]
[368953922,1751409043904,-460.0,0.00018627,2]
[368953924,1751409043913,-510.45,0.00018627,2]
[368953926,1751409043923,-460.0,0.00018627,2]
[368953928,1751409043932,-460.0,0.00018628,2]
[368953930,1751409043942,-460.0,0.00018629,2]
[368953932,1751409043951,-460.0,0.00018629,2]
[368953934,1751409043961,-460.0,0.00018629,2]
[368953936,1751409043971,-480.74,0.00018629,2]
[368953938,1751409043980,-460.0,0.00018629,2]
[368953940,1751409043990,-460.0,0.00018629,2]
[368953942,1751409043999,-327.92,0.00018629,2]
[368953944,1751409044008,-460.0,0.00018629,2]
[368953946,1751409044017,-460.0,0.00018629,2]
[368953948,1751409044026,-460.0,0.0001863,2]
[368953950,1751409044036,-181.99,0.0001863,2]
[368953952,1751409044045,-460.0,0.0001863,2]
[368953954,1751409044054,-460.0,0.0001863,2]
[368953956,1751409044063,-460.0,0.0001863,2]
[368953958,1751409044072,-460.0,0.0001863,2]
[368953960,1751409044082,-420.0,0.00018842,2]
[368953962,1751409044092,-300.0,0.00018842,2]
[368953964,1751409044101,-150.0,0.000189,2]
[368953966,1751409044111,-205.1022674,0.000189,2]
[368953968,1751409044120,-460.0,0.00018901,2]
[368953970,1751409044130,-460.0,0.00018901,2]
[368953972,1751409044140,-460.0,0.00018901,2]
[368953974,1751409044150,-510.45,0.00018901,2]
[368953976,1751409044160,-460.0,0.00018901,2]
[368953978,1751409044169,-460.0,0.00018902,2]
[368953980,1751409044180,-460.0,0.00018903,2]
[368953982,1751409044189,-460.0,0.00018903,2]
[368953984,1751409044203,-460.0,0.00018903,2]
[368953986,1751409044212,-480.74,0.00018903,2]
[368953988,1751409044222,-460.0,0.00018903,2]
[368953990,1751409044232,-460.0,0.00018903,2]
[368953992,1751409044241,-460.0,0.00018903,2]
[368953994,1751409044251,-460.0,0.00018903,2]
[368953996,1751409044261,-293.85,0.00018904,2]
[368953998,1751409044271,-460.0,0.00018904,2]
[368954000,1751409044281,-460.0,0.00018904,2]
[368954002,1751409044291,-460.0,0.00018904,2]
[368954004,1751409044300,-460.0,0.00018904,2]
[368954006,1751409044309,-160.0,0.00018936,2]
[368954008,1751409044319,-1000.0,0.00018946,2]
[368954010,1751409044328,-354.06163931,0.00019021,2]
[368954012,1751409044337,-460.0,0.00019175,2]
[368954014,1751409044346,-460.0,0.00019175,2]
[368954016,1751409044356,-460.0,0.00019175,2]
[368954018,1751409044365,-510.45,0.00019175,2]
[368954020,1751409044374,-460.0,0.00019175,2]
[368954022,1751409044384,-460.0,0.00019176,2]
[368954024,1751409044393,-460.0,0.00019177,2]
[368954026,1751409044402,-460.0,0.00019177,2]
[368954028,1751409044411,-460.0,0.00019177,2]
[368954030,1751409044421,-480.74,0.00019177,2]
[368954032,1751409044431,-460.0,0.00019177,2]
[368954034,1751409044440,-582.92,0.00019177,2]
[368954036,1751409044449,-460.0,0.00019177,2]
[368954038,1751409044459,-460.0,0.00019177,2]
[368954040,1751409044468,-460.0,0.00019178,2]
[368954042,1751409044477,-151.0,0.00019178,2]
[368954044,1751409044487,-476.78,0.00019178,2]
[368954046,1751409044496,-198.0,0.00019178,2]
[368954048,1751409044505,-460.0,0.00019178,2]
[368954050,1751409044515,-263.93,0.00019178,2]
[368954052,1751409044524,-187.070226,0.00019178,2]
[368954054,1751409044533,-151.0,0.00019205,2]
[368954056,1751409044542,-151.0,0.00019233,2]
[368954058,1751409044551,-221.08082616,0.0001926,2]
[368954060,1751409044561,-205.10226733,0.00019367,2]
[368954062,1751409044571,-236.71259655,0.00019414,2]
[368954064,1751409044580,-460.0,0.00019449,2]
[368954066,1751409044590,-460.0,0.00019449,2]
[368954068,1751409044600,-460.0,0.00019449,2]
[368954070,1751409044609,-510.45,0.00019449,2]
[368954072,1751409044619,-460.0,0.00019449,2]
[368954074,1751409044628,-460.0,0.0001945,2]
[368954076,1751409044638,-460.0,0.00019451,2]
[368954078,1751409044647,-460.0,0.00019451,2]
[368954080,1751409044656,-460.0,0.00019451,2]
[368954083,1751409044666,-480.74,0.00019451,2]
[368954085,1751409044675,-460.0,0.00019451,2]
[368954086,1751409044685,-460.0,0.00019451,2]
[368954087,1751409044694,-460.0,0.00019451,2]
[368954088,1751409044703,-460.0,0.00019452,2]
[368954089,1751409044712,-460.0,0.00019452,2]
[368954090,1751409044722,-460.0,0.00019723,2]
[368954091,1751409044734,-460.0,0.00019723,2]
[368954092,1751409044743,-460.0,0.00019723,2]
[368954093,1751409044753,-460.0,0.00019723,2]
[368954094,1751409044763,-510.45,0.00019723,2]
[368954095,1751409044773,-460.0,0.00019724,2]
[368954096,1751409044783,-460.0,0.00019725,2]
[368954097,1751409044793,-460.0,0.00019725,2]
[368954098,1751409044803,-330.56,0.00019725,2]
[368954099,1751409044812,-480.74,0.00019725,2]
[368954100,1751409044822,-169.64,0.00019725,2]
[368954101,1751409044831,-460.0,0.00019725,2]
[368954102,1751409044841,-329.72,0.00019725,2]
[368954103,1751409044851,-546.75,0.00019726,2]
[368954104,1751409044860,-460.0,0.00019726,2]
[368954105,1751409044869,-205.10226733,0.00019833,2]
[368954107,1751409044879,-460.0,0.00019997,2]
[368954109,1751409044889,-460.0,0.00019997,2]
[368954122,1751409044987,-460.0,0.00019997,2]
[368954124,1751409045009,-460.0,0.00019997,2]
[368954126,1751409045018,-510.45,0.00019997,2]
[368954128,1751409045027,-460.0,0.00019998,2]
[368954130,1751409045037,-460.0,0.00019999,2]
[368954132,1751409045046,-460.0,0.00019999,2]
[368954134,1751409045055,-480.74,0.00019999,2]
[368954136,1751409045066,-154.72,0.00019999,2]
[368954138,1751409045075,-460.0,0.0002,2]
[368954140,1751409045085,-460.0,0.00020271,2]
[368954142,1751409045095,-460.0,0.00020271,2]
[368954144,1751409045105,-460.0,0.00020271,2]
[368954146,1751409045115,-460.0,0.00020271,2]
[368954148,1751409045125,-510.45,0.00020271,2]
[368954150,1751409045135,-583.89611209,0.00020272,2]
[368954152,1751409045145,-460.0,0.00020273,2]
[368954154,1751409045154,-460.0,0.00020273,2]
[368954156,1751409045164,-480.74,0.00020273,2]
[368954158,1751409045173,-460.0,0.00020274,2]
[368954160,1751409045182,-205.10226733,0.000203,3]
[368954162,1751409045192,-1010.06749274,0.00020519,2]
[368954164,1751409045201,-236.71259655,0.00020542,2]
[368954166,1751409045211,-460.0,0.00020545,2]
[368954168,1751409045221,-460.0,0.00020545,2]
[368954170,1751409045231,-460.0,0.00020545,2]
[368954172,1751409045247,-460.0,0.00020545,2]
[368954174,1751409045258,-510.45,0.00020545,2]
[368954176,1751409045268,-500.0,0.00020547,14]
[368954178,1751409045278,-460.0,0.00020547,2]
[368954180,1751409045287,-460.0,0.00020547,2]
[368954182,1751409045297,-480.74,0.00020547,2]
[368954184,1751409045306,-460.0,0.00020548,2]
[368954186,1751409045315,-772.92,0.000206,2]
[368954188,1751409045325,-350.208,0.00020625,2]
[368954190,1751409045334,-468.54816972,0.00020721,2]
[368954192,1751409045344,-205.10226733,0.00020767,4]
[368954194,1751409045353,-460.0,0.00020819,2]
[368954196,1751409045363,-460.0,0.00020819,2]
[368954198,1751409045372,-460.0,0.00020819,2]
[368954200,1751409045382,-460.0,0.00020819,2]
[368954202,1751409045391,-510.45,0.00020819,2]
[368954204,1751409045401,-460.0,0.00020821,2]
[368954206,1751409045411,-460.0,0.00020821,2]
[368954208,1751409045420,-480.74,0.00020821,2]
[368954210,1751409045430,-460.0,0.00020822,2]
[368954212,1751409045440,-460.0,0.00021093,2]
[368954214,1751409045450,-460.0,0.00021093,2]
[368954216,1751409045459,-460.0,0.00021093,2]
[368954218,1751409045469,-460.0,0.00021093,2]
[368954220,1751409045479,-510.45,0.00021093,2]
[368954222,1751409045488,-460.0,0.00021095,2]
[368954224,1751409045498,-460.0,0.00021095,2]
[368954226,1751409045507,-480.74,0.00021095,2]
[368954228,1751409045517,-460.0,0.00021096,2]
[368954230,1751409045526,-205.10226733,0.00021233,4]
[368954232,1751409045536,-460.0,0.00021367,2]
[368954234,1751409045546,-460.0,0.00021367,2]
[368954236,1751409045555,-460.0,0.00021367,2]
[368954238,1751409045565,-460.0,0.00021367,2]
[368954240,1751409045575,-510.45,0.00021367,2]
[368954242,1751409045584,-460.0,0.00021369,2]
[368954244,1751409045593,-460.0,0.00021369,2]
[368954246,1751409045603,-480.74,0.00021369,2]
[368954248,1751409045612,-460.0,0.0002137,2]
[368954250,1751409045622,-1205.0,0.00021412,2]
[368954252,1751409045631,-1205.0,0.00021464,2]
[368954254,1751409045640,-5000.0,0.00021549,2]
[368954256,1751409045650,-207.4,0.00021549,2]
[368954258,1751409045659,-460.0,0.00021641,2]
[368954260,1751409045669,-460.0,0.00021641,2]
[368954262,1751409045679,-468.65,0.00021641,2]
[368954264,1751409045689,-460.0,0.00021641,2]
[368954266,1751409045699,-510.45,0.00021641,2]
[368954268,1751409045708,-460.0,0.00021643,2]
[368954270,1751409045718,-460.0,0.00021643,2]
[368954272,1751409045729,-480.74,0.00021643,2]
[368954274,1751409045739,-1742.10350186,0.00021644,2]
[368954276,1751409045749,-460.0,0.00021644,2]
[368954278,1751409045759,-236.71259655,0.0002167,2]
[368954280,1751409045768,-205.10226733,0.000217,5]
[368954282,1751409045777,-1205.0,0.00021713,2]
[368954284,1751409045787,-468.54816969,0.00021741,2]
[368954286,1751409045796,-1205.0,0.00021896,2]
[368954288,1751409045807,-460.0,0.00021915,2]
[368954290,1751409045817,-460.0,0.00021915,2]
[368954292,1751409045826,-460.0,0.00021915,2]
[368954294,1751409045836,-510.45,0.00021915,2]
[368954296,1751409045846,-460.0,0.00021917,2]
[368954298,1751409045856,-460.0,0.00021917,2]
[368954300,1751409045865,-480.74,0.00021917,2]
[368954302,1751409045874,-460.0,0.00021918,2]
[368954304,1751409045884,-151.0,0.00021955,7]
[368954306,1751409045893,-12500.0,0.00021955,2]
[368954308,1751409045903,-12500.0,0.00021964,2]
[368954310,1751409045913,-12500.0,0.00021973,2]
[368954312,1751409045922,-151.0,0.00021973,7]
[368954314,1751409045931,-6214.96,0.00022,7]
[368954316,1751409045940,-851.11,0.00022,7]
[368954318,1751409045950,-1023.0,0.00022053,2]
[368954320,1751409045960,-205.10226733,0.00022167,6]
[368954322,1751409045969,-460.0,0.00022189,2]
[368954324,1751409045978,-460.0,0.00022189,2]
[368954326,1751409045988,-460.0,0.00022189,2]
[368954328,1751409045998,-510.45,0.00022189,2]
[368954330,1751409046008,-528.68,0.00022191,2]
[368954332,1751409046017,-460.0,0.00022191,2]
[368954334,1751409046028,-151.0,0.00022191,7]
[368954336,1751409046037,-151.0,0.00022191,7]
[368954338,1751409046046,-480.74,0.00022191,2]
[368954340,1751409046055,-151.0,0.00022191,7]
[368954342,1751409046065,-460.0,0.00022192,2]
[368954344,1751409046075,-1205.0,0.00022221,2]
[368954346,1751409046084,-460.0,0.00022463,2]
[368954348,1751409046093,-460.0,0.00022463,2]
[368954350,1751409046103,-415.25545031,0.00022463,2]
[368954352,1751409046112,-510.45,0.00022463,2]
[368954354,1751409046121,-460.0,0.00022465,2]
[368954356,1751409046131,-480.74,0.00022465,2]
[368954358,1751409046140,-460.0,0.00022466,2]
[368954360,1751409046149,-165.044384,0.00022505,2]
[368954362,1751409046159,-205.10226733,0.00022633,7]
[368954364,1751409046169,-460.0,0.00022737,2]
[368954366,1751409046178,-460.0,0.00022737,2]
[368954368,1751409046187,-510.45,0.00022737,2]
[368954370,1751409046197,-460.0,0.00022739,2]
[368954372,1751409046206,-480.74,0.00022739,2]
[368954374,1751409046215,-460.0,0.0002274,2]
[368954376,1751409046225,-468.54816969,0.00022761,2]
[368954378,1751409046234,-1023.0,0.00022794,2]
[368954380,1751409046243,-236.71259655,0.00022798,2]
[368954382,1751409046252,-215.0738,0.00022918,2]
[368954384,1751409046262,-573.4,0.00023011,2]
[368954386,1751409046271,-509.6,0.00023011,2]
[368954388,1751409046281,-510.45,0.00023011,2]
[368954390,1751409046290,-553.08,0.00023013,2]
[368954392,1751409046300,-480.74,0.00023013,2]
[368954394,1751409046309,-460.0,0.00023014,2]
[368954396,1751409046319,-1023.0,0.00023083,2]
[368954398,1751409046328,-772.92,0.000231,7]
[368954400,1751409046337,-205.10226733,0.000231,8]
[368954402,1751409046347,-366.235562,0.00023233,2]
[368954404,1751409046357,-510.45,0.00023285,2]
[368954406,1751409046366,-480.74,0.00023287,2]
[368954408,1751409046376,-460.0,0.00023288,2]
[368954410,1751409046386,-1023.0,0.00023342,2]
[368954412,1751409046396,-151.0,0.00023342,7]
[368954414,1751409046404,-151.0,0.00023342,7]
[368954416,1751409046414,-151.0,0.00023342,7]
[368954418,1751409046423,-1149.7195556,0.00023507,2]
[368954420,1751409046433,-318.58271,0.00023507,2]
[368954422,1751409046442,-153.0,0.00023507,2]
[368954424,1751409046452,-153.0,0.00023507,2]
[368954426,1751409046461,-177.5971231,0.00023507,2]
[368954428,1751409046470,-177.5971231,0.00023507,2]
[368954430,1751409046480,-159.291355,0.00023507,2]
[368954432,1751409046489,-153.0,0.00023507,2]
[368954434,1751409046499,-153.0,0.00023507,2]
[368954436,1751409046508,-1148.8540211,0.00023507,2]
[368954438,1751409046517,-171.7625439,0.00023507,2]
[368954440,1751409046526,-510.65,0.00023559,2]
[368954442,1751409046535,-480.74,0.00023561,2]
[368954444,1751409046545,-205.10226733,0.00023567,9]
[368954446,1751409046554,-406.0,0.00023668,2]
[368954448,1751409046563,-524.13834281,0.00023779,2]
[368954450,1751409046572,-468.54816969,0.0002378,2]
[368954452,1751409046582,-524.13834281,0.00023879,2]
[368954454,1751409046591,-236.71259655,0.00023925,2]
[368954456,1751409046600,-524.13834281,0.00023979,2]
[368954458,1751409046609,-6214.96,0.00024,7]
[368954460,1751409046618,-851.11,0.00024,7]
[368954462,1751409046627,-230.32585361,0.00024,7]
[368954464,1751409046637,-524.61914904,0.00024,3]
[368954466,1751409046646,-524.61914904,0.00024,3]
[368954468,1751409046655,-215.01728679,0.00024,7]
[368954470,1751409046664,-160.0,0.00024,7]
[368954472,1751409046673,-205.10226733,0.00024033,10]
[368954474,1751409046682,-153.0,0.00024055,2]
[368954476,1751409046692,-168.0,0.00024057,2]
[368954478,1751409046701,-524.13834281,0.00024079,2]
[368954480,1751409046710,-157.9936867,0.00024082,2]
[368954482,1751409046719,-500.0,0.00024152,2]
[368954484,1751409046731,-500.0,0.00024152,2]
[368954486,1751409046740,-524.13834281,0.00024179,2]
[368954488,1751409046749,-200.0,0.0002418,10]
[368954490,1751409046759,-366.3581911,0.00024192,2]
[368954491,1751409046768,-366.3581911,0.00024192,2]
[368954493,1751409046778,-365.9903038,0.00024192,2]
[368954495,1751409046787,-802.5,0.000242,2]
[368954497,1751409046797,-1023.0,0.00024212,2]
[368954499,1751409046809,-460.0,0.00024219,2]
[368954502,1751409046819,-1023.0,0.00024231,2]
[368954503,1751409046828,-151.0,0.00024279,2]
[368954505,1751409046838,-524.13834281,0.00024279,2]
[368954507,1751409046847,-223.0315306,0.00024287,2]
[368954509,1751409046856,-153.0,0.00024329,2]
[368954511,1751409046865,-153.0,0.00024329,2]
[368954513,1751409046875,-153.0,0.00024329,2]
[368954515,1751409046884,-153.0,0.00024329,2]
[368954517,1751409046894,-153.0,0.00024329,2]
[368954519,1751409046903,-307.4082959,0.00024329,2]
[368954521,1751409046914,-153.0,0.00024329,2]
[368954523,1751409046923,-153.0,0.00024329,2]
[368954525,1751409046932,-153.0,0.00024329,2]
[368954527,1751409046941,-153.0,0.00024329,2]
[368954529,1751409046950,-159.291355,0.00024329,2]
[368954531,1751409046959,-524.13834281,0.00024379,2]
[368954533,1751409046968,-977.070378,0.0002439,2]
[368954535,1751409046978,-987.709237,0.00024401,4]
[368954537,1751409046987,-151.0,0.00024401,7]
[368954539,1751409046996,-1023.0,0.00024427,2]
[368954541,1751409047006,-524.13834281,0.00024479,2]
[368954543,1751409047015,-641.0,0.000245,2]
[368954545,1751409047025,-524.13834281,0.00024579,2]
[368954547,1751409047034,-153.0,0.00024603,2]
[368954549,1751409047043,-153.0,0.00024603,2]
[368954551,1751409047052,-153.0,0.00024603,2]
[368954553,1751409047061,-153.0,0.00024603,2]
[368954555,1751409047070,-153.0,0.00024603,2]
[368954557,1751409047079,-153.0,0.00024603,2]
[368954559,1751409047089,-153.0,0.00024603,2]
[368954560,1751409047098,-153.0,0.00024603,2]
[368954563,1751409047108,-164.308551,0.00024603,2]
[368954564,1751409047117,-153.0,0.00024603,2]
[368954566,1751409047127,-153.0,0.00024603,2]
[368954568,1751409047136,-153.0,0.00024603,2]
[368954570,1751409047145,-153.0,0.00024603,2]
[368954572,1751409047155,-800.0,0.00024621,2]
[368954574,1751409047165,-800.0,0.00024635,2]
[368954576,1751409047174,-800.0,0.00024636,2]
[368954578,1751409047184,-5000.0,0.00024649,3]
[368954580,1751409047194,-460.0,0.0002465,2]
[368954581,1751409047203,-199.17743243,0.0002465,2]
[368954582,1751409047212,-460.0,0.0002465,2]
[368954583,1751409047221,-460.0,0.0002465,2]
[368954584,1751409047230,-460.0,0.0002465,2]
[368954585,1751409047240,-460.0,0.0002465,2]
[368954586,1751409047249,-460.0,0.0002465,2]
[368954587,1751409047258,-440.54072667,0.0002465,2]
[368954588,1751409047267,-11891.66800514,0.0002465,2]
[368954589,1751409047277,-151.0,0.0002465,7]
[368954591,1751409047286,-155.24385071,0.0002465,2]
[368954593,1751409047296,-800.0,0.00024651,2]
[368954595,1751409047306,-160.00762965,0.00024657,2]
[368954597,1751409047315,-200.0,0.00024658,15]
[368954599,1751409047324,-151.0,0.00024669,7]
[368954601,1751409047335,-151.0,0.00024669,7]
[368954604,1751409047344,-151.0,0.00024669,7]
[368954605,1751409047354,-186.559108,0.00024669,7]
[368954617,1751409047363,-223.595655,0.00024669,7]
[368954619,1751409047467,-223.595655,0.00024669,7]
[368954621,1751409047476,-151.0,0.00024669,7]
[368954624,1751409047486,-151.0,0.00024669,7]
[368954626,1751409047495,-151.0,0.00024669,7]
[368954628,1751409047504,-333.520675,0.00024669,7]
[368954630,1751409047514,-333.520675,0.00024669,7]
[368954632,1751409047523,-501.030778,0.00024669,7]
[368954633,1751409047532,-501.030778,0.00024669,7]
[368954635,1751409047542,-800.0,0.00024672,2]
[368954637,1751409047552,-524.13834281,0.00024679,2]
[368954640,1751409047561,-188.123731,0.00024685,7]
[368954642,1751409047571,-151.0,0.00024685,7]
[368954644,1751409047580,-1745.10204159,0.000247,2]
[368954646,1751409047590,-151.0,0.000247,7]
[368954648,1751409047599,-310.995874,0.000247,7]
[368954650,1751409047608,-310.995874,0.000247,7]
[368954652,1751409047618,-800.0,0.00024711,2]
[368954654,1751409047627,-800.0,0.00024726,2]
[368954656,1751409047637,-800.0,0.00024731,2]
[368954658,1751409047646,-151.0,0.00024731,7]
[368954660,1751409047655,-151.0,0.00024731,7]
[368954662,1751409047667,-510.507966,0.00024731,7]
[368954664,1751409047676,-151.0,0.00024731,7]
[368954666,1751409047685,-510.507966,0.00024731,7]
[368954668,1751409047695,-1274.868111,0.00024731,7]
[368954670,1751409047704,-1274.868111,0.00024731,7]
[368954672,1751409047714,-151.0,0.00024731,7]
[368954674,1751409047723,-151.0,0.00024731,7]
[368954676,1751409047735,-227.259558,0.00024731,7]
[368954678,1751409047745,-151.0,0.00024735,7]
[368954680,1751409047754,-151.0,0.00024735,7]
[368954682,1751409047764,-151.0,0.00024735,7]
[368954684,1751409047773,-182.661185,0.00024735,7]
[368954686,1751409047782,-182.661185,0.00024735,7]
[368954688,1751409047792,-801.91486204,0.00024744,2]
[368954690,1751409047801,-151.0,0.00024744,7]
[368954692,1751409047810,-151.0,0.00024744,7]
[368954694,1751409047820,-151.0,0.00024744,7]
[368954696,1751409047830,-151.0,0.00024744,7]
[368954698,1751409047839,-800.0,0.00024746,2]
[368954700,1751409047848,-800.0,0.00024755,2]
[368954702,1751409047858,-800.0,0.00024762,2]
[368954704,1751409047869,-800.0,0.00024764,2]
[368954706,1751409047878,-800.0,0.00024765,2]
[368954708,1751409047888,-800.0,0.00024767,2]
[368954710,1751409047897,-800.0,0.00024767,2]
[368954712,1751409047906,-800.0,0.00024768,2]
[368954714,1751409047916,-524.13834281,0.00024779,2]
[368954716,1751409047925,-800.0,0.0002478,2]
[368954718,1751409047935,-800.0,0.00024781,2]
[368954720,1751409047944,-150.0,0.000248,5]
[368954722,1751409047954,-468.54816969,0.000248,2]
[368954724,1751409047964,-2889.26117632,0.000248,2]
[368954727,1751409047974,-800.0,0.00024833,2]
[368954728,1751409047983,-151.0,0.00024845,7]
[368954731,1751409047993,-152.056128,0.00024845,7]
[368954733,1751409048003,-152.056128,0.00024845,7]
[368954735,1751409048011,-151.0,0.00024845,7]
[368954737,1751409048021,-800.0,0.00024847,2]
[368954739,1751409048031,-361.15764704,0.00024848,2]
[368954741,1751409048041,-800.0,0.00024851,2]
[368954743,1751409048050,-19742.72723519,0.00024858,2]
[368954745,1751409048059,-3568.87311149,0.00024858,2]